[Event "CIS Master Groups 2024"]
[Site "Vasto"]
[Date "2024.04.11"]
[Round "6.6"]
[White "Iermito, Sebastian"]
[Black "Yao, Stefano"]
[Result "1-0"]
[ECO "A07"]
[WhiteElo "2511"]
[BlackElo "2289"]
[Annotator "TA"]
[PlyCount "109"]
[EventDate "2024.04.07"]
[EventType "team-tourn"]
[EventCountry "ITA"]
[SourceTitle "playchess.com"]
[Source "ChessBase"]
[SourceQuality "1"]
[TimeControl "40/5400+30:900+30"]

{[%evp 9,109,0,0,-8,0,0,0,-5,-7,8,15,23,26,26,22,17,26,20,19,18,17,14,14,14,13,20,16,13,35,21,32,11,33,20,69,71,131,130,130,126,123,121,128,128,131,127,133,136,125,0,129,91,91,72,85,86,86,0,0,0,0,0,0,0,0,0,0,0,0,0,8,8,8,8,8,8,8,8,8,9,506,474,921,855,3703,3287,3704,3360,3237,3288,3050,2931,2287,2088,4412,2964,2707,2260,1328,992,6671,8288]} 1. Nf3 {[%emt 0:00:03]} Nf6 {[%emt 0:00:18]} 2. g3 {[%emt 0:00:12]} d5 {[%emt 0:00:36]} 3. Bg2 {[%emt 0:00:04]} e6 {[%emt 0:00:21]} 4. O-O {[%emt 0:00:08]} Be7 {[%emt 0:00:03]} 5. d3 {[%emt 0:00:24]} O-O {[%emt 0:00:46]} 6. Bf4 {[%emt 0:00:04]} c5 {[%emt 0:02:42]} 7. a4 {[%emt 0:00:51]} Nc6 {[%emt 0:05:01]} 8. e4 {[%emt 0:00:23] The position is equal.} dxe4 {[%emt 0:10:34]} 9. dxe4 {[%emt 0:00:04]} Qxd1 {[%emt 0:04:23]} 10. Rxd1 {[%emt 0:00:02]} Nxe4 {[%emt 0:00:23]} 11. Ne5 {[%emt 0:00:20]} Nxe5 {[%emt 0:01:05]} 12. Bxe5 {[%emt 0:00:06]} Bf6 {[%emt 0:12:29]} 13. f4 {[%emt 0:00:07]} Bxe5 {[%emt 0:03:27]} 14. fxe5 {[%emt 0:00:05]} f5 {[%emt 0:00:09]} 15. Bxe4 {[%emt 0:00:03]} fxe4 {[%emt 0:00:06]} 16. Nd2 {[%emt 0:00:02]} b6 {[%emt 0:04:11]} 17. Nxe4 {[%emt 0:02:21]} Bb7 {[%emt 0:00:56]} 18. Nd6 {[%emt 0:01:10]} Bd5 {[%emt 0:10:43]} 19. Rd3 {[%emt 0:16:55]} a5 {[%emt 0:05:33]} 20. Rf1 {[%emt 0:12:42]} Rxf1+ {[%emt 0:14:58]} 21. Kxf1 $11 {[%emt 0:00:01][%mdl 4096] Endgame. KRB-KRN} Kf8 {[%emt 0:00:59]} (21... Rf8+ $11 {might be stronger.} 22. Ke1 g5) 22. Rd2 $14 {[%emt 0:05:37] White is more active.} Rd8 {[%emt 0:02:52]} (22... Bc6 $142) 23. Rf2+ $16 {[%emt 0:02:11]} Kg8 {[%emt 0:00:04]} 24. Ke2 {[%emt 0:03:45]} Bc6 {[%emt 0:02:13]} 25. b3 {[%emt 0:00:33]} Bd5 {[%emt 0:00:27]} 26. Kd3 {[%emt 0:01:28]} Rd7 {[%emt 0:00:54]} 27. Kc3 {[%emt 0:00:58]} Rd8 {[%emt 0:00:17]} 28. Nc4 {[%emt 0:05:45]} Rb8 {[%emt 0:01:07]} 29. Nd6 {[%emt 0:04:09]} Rd8 $1 {[%emt 0:00:52]} 30. g4 {[%emt 0:00:59]} h6 {[%emt 0:01:50]} 31. h4 {[%emt 0:00:13]} Rd7 {[%emt 0:01:34]} 32. Kd3 {[%emt 0:04:36]} Rd8 {[%emt 0:00:12]} 33. c4 {[%emt 0:02:06]} (33. Rf1 $16) 33... Bc6 $11 {[%emt 0:00:05]} 34. Ke3 {[%emt 0:00:34]} Rf8 {[%emt 0:01:37]} 35. Rf4 {[%emt 0:07:28]} Rxf4 {[%emt 0:09:56]} 36. Kxf4 {[%emt 0:00:02] KB-KN} Kf8 {[%emt 0:00:29]} 37. Nc8 {[%emt 0:08:12]} Ke8 {[%emt 0:00:17]} 38. g5 {[%emt 0:00:50]} (38. Nxb6 $2 Kd8 39. b4 axb4 $19 (39... cxb4 $2 40. Ke3 $19)) 38... hxg5+ {[%emt 0:01:54]} 39. Kxg5 {[%emt 0:00:18]} Bf3 {[%emt 0:01:59]} (39... Kd8 $5 40. Nd6 $8 (40. Nxb6 $2 {is the wrong capture.} Be8 $19) 40... Ke7 $11) 40. Kg6 {[%emt 0:11:23]} Kf8 {[%emt 0:00:40]} 41. Nxb6 {[%emt 0:16:01]} Bc6 {[%emt 0:03:18] Dodges Nd7+} 42. Kg5 {[%emt 0:00:00]} Ke8 {[%emt 0:01:48]} 43. Nc8 {[%emt 0:06:30]} (43. Kg6 $5 Kf8 $8 44. Kg5 $14) 43... Bf3 {[%emt 0:01:05]} 44. Nd6+ {[%emt 0:03:28]} Kf8 $2 {[%emt 0:00:09][%mdl 8192] [#] This costs Black the game.} (44... Ke7 $11) 45. Kf4 $1 $18 {[%emt 0:01:36] White is clearly winning.} Bd1 {[%emt 0:07:58]} (45... Bc6 $142 46. h5 Bg2) 46. Nb7 $1 {[%emt 0:00:08][%csl LRa5,LRc5]} Bxb3 {[%emt 0:00:27]} 47. Nxa5 {[%emt 0:00:02]} Bxa4 {[%emt 0:00:09] [#]} 48. Ke3 $1 {[%emt 0:00:17]} ({Not} 48. Nb7 Bb3 $11) 48... Kf7 {[%emt 0:04:02]} 49. Nb7 {[%emt 0:00:06]} Bb3 {[%emt 0:00:31]} 50. Kd3 {[%emt 0:00:04]} (50. Nxc5 Bxc4 51. Kd4 Ba2 $11) 50... Bd1 {[%emt 0:00:39]} 51. Nxc5 {[%emt 0:00:07]} Bg4 {[%emt 0:01:13]} 52. Ne4 {[%emt 0:01:54]} Bd1 {[%emt 0:00:33]} 53. Kd4 {[%emt 0:03:33]} Kg6 {[%emt 0:00:14]} 54. Ng3 {[%emt 0:00:13] Hoping for Kc5.} Bf3 {[%emt 0:00:15]} 55. Kc5 {[%emt 0:00:27] Weighted Error Value: White=0.10 (very precise) /Black=0.25 (precise) .  Loses game:     	---       	Black=1      Mistake:       	White=1     	Black=3      Inaccurate:     	---       	Black=1      OK:         	White=16    	Black=17     Best:        	White=2     	Black=5      Strong:       	White=1     	Black=1} 1-0

[Event "CIS Master Groups 2024"]
[Site "Vasto"]
[Date "2024.04.11"]
[Round "6.7"]
[White "Tripodi, Enzo"]
[Black "Godena, Michele"]
[Result "1/2-1/2"]
[ECO "C78"]
[WhiteElo "2152"]
[BlackElo "2429"]
[Annotator "TA"]
[PlyCount "22"]
[EventDate "2024.04.07"]
[EventType "team-tourn"]
[EventCountry "ITA"]
[SourceTitle "playchess.com"]
[Source "ChessBase"]
[SourceQuality "1"]
[TimeControl "40/5400+30:900+30"]

{[%evp 16,22,29,12,15,3,5,0,28]} 1. e4 {[%emt 0:00:03]} e5 {[%emt 0:00:26]} 2. Nf3 {[%emt 0:00:08]} Nc6 {[%emt 0:00:04]} 3. Bb5 {[%emt 0:00:05][%cal Bf1b5,Bb5a4,Ba4b3][%mdl 32]} a6 {[%emt 0:06:03]} 4. Ba4 {[%emt 0:00:11]} Nf6 {[%emt 0:01:47]} 5. O-O {[%emt 0:00:12]} b5 {[%emt 0:12:29]} 6. Bb3 {[%emt 0:00:06]} Bc5 {[%emt 0:00:06]} 7. c3 {[%emt 0:00:33]} d6 {[%emt 0:00:09]} 8. d4 {[%emt 0:00:13]} Bb6 {[%emt 0:00:06]} 9. Be3 {[%emt 0:00:35]} O-O {[%emt 0:10:23] The position is equal.} 10. Nbd2 {[%emt 0:00:14]} Rb8 {[%emt 0:06:42]} 11. h3 {[%emt 0:10:39]} h6 {[%emt 0:05:08] A rather calm draw.   Weighted Error Value: White=0.07 (flawless) /Black=0.00 (flawless) .  Inaccurate:     	---       	Black=1      OK:         	White=1     	Black=1} 1/2-1/2

[Event "CIS Master Groups 2024"]
[Site "Vasto"]
[Date "2024.04.11"]
[Round "6.8"]
[White "Bellia, Fabrizio"]
[Black "Rotondaro, Alberto"]
[Result "1-0"]
[ECO "B92"]
[WhiteElo "2384"]
[BlackElo "2148"]
[Annotator "TA"]
[PlyCount "75"]
[EventDate "2024.04.07"]
[EventType "team-tourn"]
[EventCountry "ITA"]
[SourceTitle "playchess.com"]
[Source "ChessBase"]
[SourceQuality "1"]
[TimeControl "40/5400+30:900+30"]

{[%evp 19,75,-7,0,6,50,38,141,138,141,144,146,147,150,143,138,141,135,134,136,133,147,139,176,167,168,166,164,157,181,179,173,172,166,167,206,203,229,228,237,228,229,210,228,233,215,211,264,249,473,460,29987,447,29991,29992,29992,29993,29997,29998]} 1. e4 {[%emt 0:00:04]} c5 {[%emt 0:00:06]} 2. Nf3 {[%emt 0:00:06]} d6 {[%emt 0:00:09]} 3. d4 {[%emt 0:00:05]} cxd4 {[%emt 0:00:06]} 4. Nxd4 {[%emt 0:00:04]} Nf6 {[%emt 0:00:07]} 5. Nc3 {[%emt 0:00:03]} a6 {[%emt 0:00:06]} 6. Be2 {[%emt 0:00:04]} e5 {[%emt 0:00:14]} 7. Nb3 {[%emt 0:00:06]} Be7 {[%emt 0:00:29]} 8. O-O {[%emt 0:00:07]} O-O {[%emt 0:00:10]} 9. Be3 {[%emt 0:00:06]} Be6 {[%emt 0:00:14]} 10. Nd5 {[%emt 0:00:13]} Nbd7 {[%emt 0:09:01]} 11. Qd3 {[%emt 0:00:30]} Rc8 {[%emt 0:14:23]} 12. c4 {[%emt 0:03:23]} Ng4 {[%emt 0:02:17]} ({Better is} 12... b5 $14 13. Rfc1 (13. cxb5 axb5 14. Qxb5 Nxe4 $11) 13... Rxc4) 13. Bxg4 $16 {[%emt 0:14:07] White is clearly better.} Bxg4 {[%emt 0:00:07] [#]} 14. Na5 $1 {[%emt 0:00:08][%cal Bb3a5,Ba5b7,Bb7d6][%mdl 544] Excellent horsemanship.} b6 {[%emt 0:26:49]} (14... Nc5 15. Bxc5) 15. Nb7 {[%emt 0:07:50]} Qe8 {[%emt 0:00:05]} 16. h3 {[%emt 0:11:06] White is much more active.} (16. Nxb6 $2 {too greedy.} Nxb6 17. b3 (17. Bxb6 $2 Qc6 $19) 17... Qc6 $19) 16... Be6 {[%emt 0:00:42] aiming for ...Bxd5.} 17. Nxe7+ {[%emt 0:00:40]} (17. Nxb6 Nxb6 18. Nxd6 Bxd6 19. Bxb6 Bxc4 (19... Rc6 $2 20. c5 $19) 20. Qxd6 Bxf1 21. Rxf1 Qb5 $19) 17... Qxe7 {[%emt 0:00:07]} 18. Nxd6 {[%emt 0:00:39]} Rc6 {[%emt 0:04:44]} 19. Rfd1 {[%emt 0:00:31]} Nc5 {[%emt 0:02:10]} 20. Bxc5 {[%emt 0:02:08]} bxc5 {[%emt 0:01:05]} 21. Nf5 {[%emt 0:02:34]} Bxf5 {[%emt 0:02:08]} 22. exf5 {[%emt 0:00:08]} h6 {[%emt 0:00:17]} 23. Qd5 {[%emt 0:04:24]} Qf6 {[%emt 0:01:08]} 24. Re1 {[%emt 0:01:39]} Re8 {[%emt 0:00:45]} 25. Rad1 {[%emt 0:02:06]} Rcc8 {[%emt 0:03:21] Black is weak on the light squares} 26. Qe4 {[%emt 0:02:27]} Qb6 {[%emt 0:01:46]} 27. b3 {[%emt 0:00:34]} f6 {[%emt 0:02:04]} 28. Rd7 {[%emt 0:01:15] [#] Qg4 would kill now.} Kh8 {[%emt 0:02:48]} 29. Red1 {[%emt 0:04:25] R1d6 would now be deadly.} Red8 {[%emt 0:27:32]} 30. Qg4 {[%emt 0:08:27][%csl Gd7][%cal Rg4g7]} Rxd7 {[%emt 0:00:00]} 31. Rxd7 $40 {[%emt 0:00:05][%mdl 4224] Endgame. KQR-KQR. White attacks with force.} Rg8 {[%emt 0:00:00]} 32. Qd1 {[%emt 0:00:11]} Qa5 {[%emt 0:00:00]} 33. Qd2 {[%emt 0:00:27]} Qa3 {[%emt 0:00:00]} (33... Qxd2 34. Rxd2 a5) 34. g4 {[%emt 0:00:31]} Ra8 {[%emt 0:00:00]} (34... Qb4 $18 35. Qxb4 cxb4) 35. h4 {[%emt 0:00:55]} (35. g5 $142 fxg5 36. f6 Rg8 37. f7 Rf8 38. Qd6 (38. Rd8 Qc1+ 39. Qxc1 Rxd8 $18) 38... Kh7 39. Qxf8 Qc1+ 40. Kg2) 35... a5 {[%emt 0:00:00]} (35... Qb4 $18 36. Qxb4 cxb4) 36. g5 {[%emt 0:00:32] White mates.} fxg5 {[%emt 0:00:00]} 37. hxg5 {[%emt 0:00:09]} Qb4 {[%emt 0:00:00]} 38. Rd8+ {[%emt 0:00:17] White took control after the opening.   Weighted Error Value: White=0.17 (very precise) /Black=0.63.  Mistake:       	White=1     	Black=4      Inaccurate:     	---       	Black=1      OK:         	White=14    	Black=9      Best:        	White=3     	---        Brilliant:      	White=1     	---} 1-0

[Event "CIS Master Groups 2024"]
[Site "Vasto"]
[Date "2024.04.11"]
[Round "6.9"]
[White "Ivanisevic, Ivan"]
[Black "Socko, Bartosz"]
[Result "1/2-1/2"]
[ECO "E32"]
[WhiteElo "2518"]
[BlackElo "2565"]
[Annotator "TA"]
[PlyCount "227"]
[EventDate "2024.04.07"]
[EventType "team-tourn"]
[EventCountry "ITA"]
[SourceTitle "playchess.com"]
[Source "ChessBase"]
[SourceQuality "1"]
[TimeControl "40/5400+30:900+30"]

{[%evp 9,227,25,25,22,24,22,33,27,27,22,25,16,23,8,18,13,4,8,2,0,0,0,0,0,0,0,0,0,0,0,4,-6,0,-35,-1,0,0,-4,0,-11,-8,-5,-6,-13,0,-1,0,-6,0,-5,-2,-12,-10,-45,-29,-40,-36,-37,-33,-58,-49,-63,-63,-60,-54,-246,-256,-262,-191,-176,-196,-204,-204,-204,-204,-201,-187,-231,-202,-160,-150,-199,-157,-150,-174,-177,-94,-177,-144,-144,-39,-39,-14,-72,-8,-8,0,0,0,0,0,-333,-362,-370,-370,-370,0,0,0,0,0,0,0,0,0,0,0,0,0,0,0,0,0,0,0,0,0,0,0,0,0,0,0,0,0,0,0,0,0,0,0,0,0,0,0,0,0,0,0,0,0,-29952,-29952,-29951,-29950,-29954,-29952,-12844,-11642,-4010,0,0,0,0,0,0,0,0,0,0,0,0,0,0,0,0,0,0,0,0,0,0,0,0,0,0,0,0,0,0,0,0,0,0,0,0,0,0,0,0,0,0,0,0,0,0,0,0,0,0,0,0,0,0,0,0,0,0,0,0]} 1. d4 {[%emt 0:01:53]} e6 {[%emt 0:00:06]} 2. c4 {[%emt 0:00:16]} Nf6 {[%emt 0:00:05]} 3. Nc3 {[%emt 0:00:05]} Bb4 {[%emt 0:00:05]} 4. Qc2 {[%emt 0:00:05]} d6 {[%emt 0:00:24]} 5. e3 {[%emt 0:01:40]} O-O {[%emt 0:00:49]} 6. Bd3 {[%emt 0:00:07]} c5 {[%emt 0:00:11]} 7. Nge2 {[%emt 0:00:24]} cxd4 {[%emt 0:00:30]} 8. exd4 {[%emt 0:00:09] White is slightly better.} d5 {[%emt 0:00:07]} 9. cxd5 {[%emt 0:04:08]} exd5 {[%emt 0:00:53]} 10. O-O {[%emt 0:02:38]} h6 {[%emt 0:01:21] Prevents Bg5.} 11. Bf4 {[%emt 0:02:08]} Nc6 {[%emt 0:00:19]} 12. Rad1 {[%emt 0:01:25]} Re8 {[%emt 0:04:33]} 13. h3 {[%emt 0:04:48]} Bd6 {[%emt 0:09:42]} 14. Qc1 {[%emt 0:01:02]} Be6 {[%emt 0:01:07]} 15. Nb5 {[%emt 0:04:06]} Bxf4 {[%emt 0:02:04]} 16. Qxf4 {[%emt 0:00:06]} Re7 {[%emt 0:00:24] Wards off Nc7} 17. a3 {[%emt 0:01:24]} Qb6 {[%emt 0:03:59]} 18. Nbc3 {[%emt 0:06:05]} Rae8 {[%emt 0:03:36]} (18... Qxb2 $2 19. Rb1 Qxa3 20. Ra1 $18) 19. b4 {[%emt 0:00:24]} Qc7 {[%emt 0:06:28]} 20. Bb5 {[%emt 0:05:51]} Rc8 {[%emt 0:01:29]} 21. Na4 {[%emt 0:02:36]} a5 {[%emt 0:10:29]} 22. Qxc7 {[%emt 0:02:59]} Rcxc7 {[%emt 0:00:58]} 23. bxa5 {[%emt 0:05:43]} Nxa5 {[%emt 0:00:55]} 24. Nf4 {[%emt 0:00:50]} Bd7 {[%emt 0:06:02]} 25. Bxd7 {[%emt 0:00:25]} Rexd7 {[%emt 0:00:20][%cal Be7d7,Bd7d8,Bd8a8][%mdl 32]} 26. Rfe1 {[%emt 0:04:32]} Nc4 {[%emt 0:01:23]} 27. Nc5 {[%emt 0:07:12]} Rd8 {[%emt 0:00:27]} 28. Rb1 {[%emt 0:04:20]} b6 {[%emt 0:03:21]} 29. Ncd3 {[%emt 0:04:32]} Ra8 {[%emt 0:14:29]} (29... g5 $5 30. Ne2 $8 Ra8 $11 (30... Nxa3 31. Rxb6 Ne4 32. Rxh6 $16)) 30. Nb4 {[%emt 0:01:36]} Ra5 {[%emt 0:00:38]} (30... Rxa3 31. Nbxd5 Nxd5 32. Nxd5) 31. Rbc1 {[%emt 0:02:30]} g5 {[%emt 0:01:34]} (31... Rxa3 $2 {loses.} 32. Nfxd5 Nxd5 33. Nxd5 $18) 32. Ne2 {[%emt 0:00:41]} Rxa3 {[%emt 0:03:22]} 33. Nc3 {[%emt 0:02:54]} Ra5 {[%emt 0:00:07]} 34. f4 {[%emt 0:00:33]} gxf4 {[%emt 0:01:26]} 35. Ne2 $1 {[%emt 0:08:14]} Ra4 {[%emt 0:07:51]} 36. Nd3 {[%emt 0:00:50]} f3 {[%emt 0:00:29]} 37. Ng3 {[%emt 0:06:24]} ({White must play} 37. gxf3 $15 Re7 38. Kf2) 37... Ra3 $19 {[%emt 0:01:57]} 38. Ne5 {[%emt 0:02:11]} Nxe5 {[%emt 0:01:46]} 39. dxe5 {[%emt 0:00:49]} Rxc1 {[%emt 0:00:20]} 40. Rxc1 {[%emt 0:00:04]} Ne4 {[%emt 0:03:41]} 41. Nxe4 {[%emt 0:19:46]} dxe4 {[%emt 0:15:15][%mdl 4096] Endgame. KR-KR} 42. Re1 {[%emt 0:00:12]} fxg2 $1 {[%emt 0:04:04]} 43. Kxg2 {[%emt 0:04:34]} e3 {[%emt 0:00:41]} 44. Kf3 {[%emt 0:00:46]} Rb3 {[%emt 0:00:40]} 45. Rc1 {[%emt 0:00:13]} (45. Rd1 $17 {keeps fighting.}) 45... Rb5 {[%emt 0:01:52]} 46. Rc8+ {[%emt 0:02:01]} Kg7 {[%emt 0:00:14]} 47. Re8 {[%emt 0:00:14]} Rb3 {[%emt 0:02:53]} (47... Rb2 $19 {...e2 is the strong threat.} 48. Kxe3 Rb3+ 49. Kf4 Rxh3) 48. Ke2 {[%emt 0:00:00]} (48. e6 $17) 48... Kg6 {[%emt 0:00:00] Hoping for ...Kf5.} 49. e6 {[%emt 0:00:00]} fxe6 {[%emt 0:00:00]} (49... Rb2+ $1 $17 50. Kxe3 Rb5) 50. Rxe6+ $15 {[%emt 0:00:00]} Kh5 {[%emt 0:00:00]} 51. Kf3 {[%emt 0:00:00]} (51. Re4 $1 $11 {was the only way to keep the balance.}) 51... b5 {[%emt 0:00:00]} ({Black should play} 51... Kg5 $1 $17) 52. h4 $11 {[%emt 0:00:00]} b4 {[%emt 0:00:00] White must now prevent ...Rb1.} 53. Rb6 {[%emt 0:00:00]} Rb1 {[%emt 0:00:00] Threatens to win with ...Rb3.} 54. Kxe3 {[%emt 0:00:00]} b3 {[%emt 0:04:10][%cal Ob3b2]} 55. Kf2 $2 {[%emt 0:00:00][%mdl 8192]} (55. Kd2 $11 {and White has nothing to worry.}) 55... Kg4 $19 {[%emt 0:00:35] And now ...h5 would win.} ({Not} 55... Kxh4 56. Rxh6+ Kg4 57. Rb6 $11) 56. Rb4+ {[%emt 0:04:24]} Kh3 {[%emt 0:00:07]} 57. h5 {[%emt 0:00:35] [#]} Rb2+ {[%emt 0:00:15]} (57... b2 $1 $19 {( -> ...Rh1)} 58. Rb3+ Kg4) 58. Kf3 $11 {[%emt 0:00:36]} Rg2 {[%emt 0:00:19]} 59. Rb6 {[%emt 0:00:10]} b2 {[%emt 0:01:12]} 60. Rb4 $1 {[%emt 0:01:54]} Kh2 {[%emt 0:00:34]} 61. Ke3 {[%emt 0:00:27]} Kg3 {[%emt 0:01:27]} 62. Kd3 {[%emt 0:00:06]} Rh2 {[%emt 0:00:26]} 63. Ke3 {[%emt 0:00:47]} Rf2 {[%emt 0:00:43]} (63... Rxh5 64. Rxb2 Re5+ 65. Kd3 $17) 64. Rb6 {[%emt 0:00:26]} Rc2 {[%emt 0:00:31]} 65. Kd3 {[%emt 0:00:28]} Rh2 {[%emt 0:00:04]} 66. Ke3 {[%emt 0:00:19]} Kg4 {[%emt 0:01:10]} 67. Rb5 {[%emt 0:00:36]} Rh3+ {[%emt 0:00:09]} (67... Rxh5 68. Rxb2 Rh3+ 69. Ke4 $17) 68. Ke4 {[%emt 0:00:23]} Rh2 {[%emt 0:00:04]} (68... Rxh5 69. Rxb2 Rh1 70. Rg2+ Kh3 71. Kf3 $17) 69. Ke3 {[%emt 0:00:04]} Rg2 {[%emt 0:01:17]} (69... Rxh5 70. Rxb2 Rh3+ 71. Ke4 $15) 70. Ke4 {[%emt 0:00:42]} Re2+ {[%emt 0:01:17]} 71. Kd3 {[%emt 0:00:05]} Rg2 {[%emt 0:00:31]} 72. Ke4 {[%emt 0:00:04]} Kg3 {[%emt 0:00:23]} 73. Ke3 {[%emt 0:00:12]} Rh2 {[%emt 0:00:15]} 74. Ke4 {[%emt 0:00:50]} Rh4+ {[%emt 0:00:06]} 75. Ke3 {[%emt 0:00:07]} Rxh5 {[%emt 0:00:04]} 76. Rxb2 {[%emt 0:00:06]} Re5+ {[%emt 0:00:11]} 77. Kd4 {[%emt 0:00:16]} Re6 {[%emt 0:00:15]} 78. Kd5 {[%emt 0:03:15]} Re1 {[%emt 0:00:37]} 79. Rb3+ {[%emt 0:00:38]} Kg4 {[%emt 0:00:21]} 80. Rb4+ $2 {[%emt 0:00:11][%mdl 8192]} (80. Rb8 $11) 80... Kf5 {[%emt 0:00:14]} 81. Rh4 {[%emt 0:00:23]} Rd1+ {[%emt 0:00:04]} 82. Kc4 {[%emt 0:00:04] [#]} Kg5 $1 {[%emt 0:00:06]} 83. Rh3 {[%emt 0:01:21]} h5 {[%emt 0:00:05]} 84. Rd3 {[%emt 0:00:28]} Rg1 $2 {[%emt 0:00:07]} (84... Re1 $19 85. Rg3+ Kf4) 85. Kc3 $1 {[%emt 0:00:35] The position is equal.} Rg2 {[%emt 0:02:34] Strongly threatening ...h4.} (85... h4 $5 86. Kd2 $8 Kg4 $11) 86. Rd5+ {[%emt 0:00:41]} Kg4 {[%emt 0:00:06] aiming for ...h4.} 87. Kd3 {[%emt 0:00:03]} h4 {[%emt 0:00:16]} 88. Ke3 {[%emt 0:00:17]} h3 {[%emt 0:01:46]} 89. Rd7 {[%emt 0:00:18]} Kg3 {[%emt 0:00:12]} 90. Rb7 {[%emt 0:01:05]} Ra2 {[%emt 0:00:21]} (90... h2 $5 91. Rg7+ $8 Kh4 92. Rh7+ Kg4 93. Rg7+ Kh4 94. Rh7+ Kg4 95. Rg7+ Kh3 96. Rh7+ Kg3 97. Rg7+ Kh3 98. Rh7+ Kg3 99. Rg7+ $11) 91. Rg7+ {[%emt 0:00:14]} Kh2 {[%emt 0:00:04]} 92. Rg6 {[%emt 0:01:09]} Rg2 {[%emt 0:00:37]} 93. Rb6 {[%emt 0:00:05]} Rg8 {[%emt 0:00:21]} 94. Kf3 {[%emt 0:00:31]} Rf8+ {[%emt 0:00:07]} 95. Ke2 {[%emt 0:00:04]} Rg8 {[%emt 0:00:27]} 96. Kf2 {[%emt 0:00:12]} Rf8+ {[%emt 0:00:13]} 97. Ke2 $1 {[%emt 0:00:07]} Kh1 {[%emt 0:00:35]} 98. Rg6 {[%emt 0:00:24]} Ra8 {[%emt 0:00:36]} 99. Rb6 {[%emt 0:00:31]} Ra4 {[%emt 0:00:44]} (99... Kg2 $5 100. Rg6+ $8 Kh2 $11) 100. Kf2 {[%emt 0:00:09]} Ra2+ {[%emt 0:00:29]} 101. Kf1 {[%emt 0:00:27]} Kh2 {[%emt 0:00:07]} 102. Rb3 {[%emt 0:00:09]} Rg2 {[%emt 0:00:47]} 103. Rf3 {[%emt 0:00:06]} Rg1+ {[%emt 0:00:08]} 104. Kf2 {[%emt 0:00:04]} Rb1 {[%emt 0:00:08]} 105. Ra3 {[%emt 0:00:08]} Rb7 {[%emt 0:00:29]} 106. Rf3 {[%emt 0:00:08] Repels Rf7} Rh7 {[%emt 0:00:20]} 107. Kf1 {[%emt 0:00:12]} Kh1 {[%emt 0:00:06]} 108. Kf2 {[%emt 0:00:11]} h2 {[%emt 0:00:11]} 109. Kf1 {[%emt 0:01:51]} Ra7 {[%emt 0:00:10]} 110. Rf5 {[%emt 0:00:08]} Ra4 {[%emt 0:00:18]} 111. Rf6 {[%emt 0:00:05]} Ra3 {[%emt 0:00:19]} 112. Rf5 {[%emt 0:00:08]} Ra4 {[%emt 0:00:04]} 113. Rf6 {[%emt 0:00:04]} Ra3 {[%emt 0:00:12]} 114. Rf5 {[%emt 0:00:06] White happily takes the draw.   Weighted Error Value: White=0.25 (precise) /Black=0.20 (precise) .  Loses game:     	White=3     	---        Missed win:     	---       	Black=1      Mistake:       	White=3     	Black=3      Inaccurate:     	White=2     	Black=1      OK:         	White=43    	Black=22     Best:        	White=10    	Black=4      Strong:       	White=3     	Black=1} 1/2-1/2